bitfinex/quotes_ETHUSD_20251010
["timestamp","ask_amount","ask_price","bid_price","bid_amount"]
[1760086922911,13.98435324,4347.2,4347.1,0.01]
[1760086923636,20.7521512,4347.2,4347.1,0.01]
[1760086923838,8.1979502,4347.2,4347.1,0.01]
[1760086924037,11.4900932,4347.2,4347.1,0.01]
[1760086924335,5.7843202,4347.2,4347.1,0.01]
[1760086924538,5.29063124,4347.2,4347.1,0.01]
[1760086925035,0.4367,4347.2,4347.1,0.01]
[1760086925703,3.38214657,4347.2,4347.1,0.01]
[1760086925913,5.30214657,4347.2,4347.1,0.01]
[1760086926099,5.29063124,4347.2,4347.1,0.01]
[1760086926918,9.88511381,4347.2,4347.1,0.01]
[1760086927248,22.14037981,4347.2,4347.1,0.01]
[1760086927537,3.48417957,4347.2,4347.1,0.01]
[1760086927750,5.29063124,4347.2,4347.1,0.01]
[1760086928162,2.9903,4347.2,4347.1,0.01]
[1760086929061,2.3567,4347.2,4347.1,0.01]
[1760086929550,2.9903,4347.2,4347.1,0.01]
[1760086929862,5.30214657,4347.2,4347.1,0.01]
[1760086930036,1.0703,4347.2,4347.1,0.01]
[1760086931038,1.08181533,4347.2,4347.1,0.01]
[1760086931228,3.38214657,4347.2,4347.1,0.01]
[1760086931623,5.30214657,4347.2,4347.1,0.01]
[1760086931946,5.29063124,4347.2,4347.1,0.01]
[1760086932860,18.76888624,4347.2,4347.1,0.01]
[1760086933065,20.40176124,4347.2,4347.1,0.01]
[1760086933364,18.67947224,4347.2,4347.1,0.01]
[1760086933561,15.86585124,4347.2,4347.1,0.01]
[1760086933858,5.29063124,4347.2,4347.1,0.01]
[1760086936554,5.29063124,4347.2,4347.1,0.011]
[1760086936933,4.65703124,4347.2,4347.1,0.011]
[1760086937135,5.30214657,4347.2,4347.1,0.011]
[1760086937334,5.29063124,4347.2,4347.1,0.011]
[1760086938932,12.99408124,4347.2,4347.1,0.011]
[1760086939268,5.78514824,4347.2,4347.1,0.011]
[1760086939462,5.78434824,4347.2,4347.1,0.011]
[1760086940270,5.28983124,4347.2,4347.1,0.011]
[1760086941070,5.78472523,4347.2,4347.1,0.011]
[1760086941938,23.85705874,4347.2,4347.1,0.011]
[1760086942142,4.85398416,4347.1,4346.6,0.001]
[1760086942477,4.85398416,4347.1,4346.2,0.001]
[1760086942478,34.85440758,4346.3,4346.2,0.001]
[1760086942635,32.93488411,4345.4,4344.5,0.001]
[1760086942837,2.93499003,4345.2,4344.5,0.001]
[1760086943044,2.94650536,4345.2,4344.5,0.001]
[1760086943250,3.38320536,4345.2,4344.5,0.001]
[1760086943650,1.08181533,4345.2,4344.5,0.001]
[1760086943849,3.38320536,4345.2,4344.5,0.001]
[1760086944975,1.08181533,4345.2,4344.5,0.001]
[1760086945175,3.37169003,4345.2,4344.5,0.001]
[1760086945341,3.38320536,4345.2,4344.5,0.001]
[1760086945536,1.08181533,4345.2,4344.5,2.30275174]
[1760086945865,1.08181533,4345.2,4344.5,0.001]
[1760086946782,1.08181533,4345.2,4344.6,2.30170517]
[1760086946964,1.08181533,4345.2,4344.5,2.30275233]
[1760086947683,3.38320536,4345.2,4344.5,0.001]
[1760086947882,1.08181533,4345.2,4344.5,2.30274959]
[1760086948441,1.57662359,4345.2,4344.5,2.30274959]
[1760086948679,1.57662359,4345.2,4344.5,0.001]
[1760086948879,2.3008752,4346.2,4344.5,0.001]
[1760086948880,0.45004743,4345.6,4344.5,0.001]
[1760086949105,0.4398,4345.5,4344.5,0.001]
[1760086949309,0.4398,4345.5,4345.3,2.30132445]
[1760086949510,0.6336,4345.4,4345.3,2.30132445]
[1760086949719,0.6336,4345.4,4345.1,2.31144247]
[1760086949720,1.0734,4345.4,4345.1,0.01]
[1760086949878,0.6336,4345.2,4345.1,0.01]
[1760086950211,2.93499003,4345.2,4345.1,0.01]
[1760086950530,3.37479003,4345.2,4344.5,0.001]
[1760086950672,2.93509597,4345.0,4344.5,0.001]
[1760086950871,0.01151533,4344.9,4344.5,0.001]
[1760086951116,2.75286427,4344.9,4344.5,0.001]
[1760086951280,5.16770414,4344.9,4344.5,0.001]
[1760086951476,5.15618881,4344.9,4344.5,0.001]
[1760086951675,2.85463987,4344.9,4344.5,0.001]
[1760086951984,2.8661552,4344.9,4344.5,0.001]
[1760086952190,2.37131533,4344.9,4344.5,0.001]
[1760086952739,2.3598,4344.9,4344.5,2.30275795]
[1760086952881,2.3598,4344.9,4344.5,2.30274671]
[1760086953424,2.37131533,4344.9,4344.5,0.001]
[1760086953790,4.67286427,4344.9,4344.5,0.001]
[1760086954023,5.80105781,4344.9,4344.5,0.001]
[1760086954179,5.78954248,4344.9,4344.5,0.001]
[1760086954988,14.99325548,4344.9,4344.5,0.001]
[1760086955178,12.94716748,4344.9,4344.5,0.001]
[1760086955385,8.66682348,4344.9,4344.5,0.001]
[1760086955904,5.78954248,4344.9,4344.5,0.001]
[1760086956102,18.48760308,4344.9,4344.5,0.001]
[1760086956288,17.66217848,4344.9,4344.5,0.001]
[1760086956711,18.900339,4344.9,4344.5,0.001]
[1760086956923,31.552093,4344.9,4344.5,0.001]
[1760086957126,30.512011,4344.9,4344.5,0.001]
[1760086957632,7.027703,4344.9,4344.5,0.001]
[1760086957834,17.615995,4344.9,4344.5,0.001]
[1760086958005,11.502197,4344.9,4344.5,0.001]
[1760086958438,6.61254139,4344.9,4344.5,0.001]
[1760086958651,9.95399839,4344.9,4344.5,0.001]
[1760086958803,5.15594248,4344.9,4344.5,0.001]
[1760086958998,5.78954248,4344.9,4344.5,0.001]
[1760086959928,9.0060662,4344.9,4344.5,0.001]
[1760086960608,9.4318702,4344.9,4344.5,0.001]
[1760086961144,8.81465948,4344.9,4344.5,0.001]
[1760086961436,8.81385948,4344.9,4344.5,0.001]
[1760086961639,18.38028848,4344.9,4344.5,0.001]
[1760086962137,8.16717348,4344.9,4344.5,0.001]
[1760086962606,5.78874248,4344.9,4344.5,0.001]
[1760086962808,5.78529012,4344.9,4344.5,0.001]
[1760086965522,3.48374118,4344.9,4344.5,0.001]
[1760086965863,2.86165651,4344.9,4344.5,0.001]
[1760086966159,2.36706297,4344.9,4344.5,0.001]
[1760086966331,3.49525651,4344.9,4344.5,0.001]
[1760086966728,5.79680545,4344.9,4344.5,0.001]
[1760086967057,5.78529012,4344.9,4344.5,0.001]
[1760086967667,19.5765935,4344.9,4344.5,0.001]
[1760086967967,18.95888112,4344.9,4344.5,0.001]
[1760086968624,19.72536112,4344.9,4344.5,0.001]
[1760086968872,17.30732312,4344.9,4344.5,0.001]
[1760086969441,18.13032203,4344.9,4344.5,0.001]
[1760086969642,23.06769103,4344.9,4344.5,0.001]
[1760086970047,19.69348103,4344.9,4344.5,0.001]
[1760086970558,13.69600903,4344.9,4344.5,0.001]
[1760086970761,9.13997203,4344.9,4344.5,0.001]
[1760086971061,5.78529012,4344.9,4344.5,0.001]
[1760086972248,6.60828903,4344.9,4344.5,0.001]
[1760086972662,30.81139012,4344.9,4344.5,0.001]
[1760086973140,28.94947312,4344.9,4344.5,0.001]
[1760086973337,22.65794612,4344.9,4344.5,0.001]
[1760086973537,22.47005212,4344.9,4344.5,0.001]
[1760086973738,21.47005212,4344.9,4344.5,0.001]
[1760086973940,20.83645212,4344.9,4344.5,0.001]
[1760086974272,2.93530786,4344.6,4344.5,0.001]
[1760086974586,21.26831351,4344.6,4344.5,0.001]
[1760086974740,21.71949818,4344.6,4344.5,0.001]
[1760086974935,20.4791104,4344.6,4344.5,0.001]
[1760086975650,26.7038204,4344.6,4344.5,0.001]
[1760086975852,24.9038204,4344.6,4344.5,0.001]
[1760086976672,30.8385654,4344.6,4344.5,0.001]
[1760086977169,29.7420844,4344.6,4344.5,0.001]
[1760086977595,15.7511764,4344.6,4344.5,0.001]
[1760086977901,19.82302461,4344.6,4344.5,0.001]
[1760086978196,18.5827324,4344.6,4344.5,0.001]
[1760086978341,5.8126014,4344.6,4344.5,0.001]
[1760086978541,7.05293796,4344.6,4344.5,0.001]
[1760086979054,5.8126014,4344.6,4344.5,0.001]
[1760086979261,7.05293796,4344.6,4344.5,0.001]
[1760086979686,5.8126014,4344.6,4344.5,0.001]
[1760086980189,8.4452304,4344.6,4344.5,0.001]
[1760086980569,5.8126014,4344.6,4344.5,0.001]
[1760086980742,4.3382764,4344.6,4344.5,0.001]
[1760086980941,1.59089354,4344.6,4344.5,0.001]
[1760086981143,3.00318282,4344.6,4344.5,0.001]
[1760086981343,0.95729354,4344.6,4344.5,0.001]
[1760086981587,0.4627,4344.6,4344.5,0.001]
[1760086982591,0.4627,4344.6,4344.5,2.30276084]
[1760086982833,0.4627,4344.6,4344.5,0.23147608]
[1760086982974,0.4627,4344.6,4344.5,0.001]
[1760086983504,0.47421533,4344.6,4344.5,0.001]
[1760086983654,0.4619,4344.6,4344.5,0.001]
[1760086983855,0.4619,4344.6,4344.5,2.30276084]
[1760086984053,0.4619,4344.6,4344.5,0.001]
[1760086985182,0.47341533,4344.6,4344.5,0.001]
[1760086986047,1.10701533,4344.6,4344.5,0.001]
[1760086990910,1.0955,4344.6,4344.5,0.001]
[1760086991608,0.4619,4344.6,4344.5,0.001]
[1760086992495,0.4619,4344.6,4344.5,2.30276084]
[1760086992702,0.002,4344.9,4344.5,2.5332464]
[1760086992906,0.4517,4344.8,4344.5,0.23148556]
[1760086993108,0.002,4344.9,4344.8,2.30160191]
[1760086993510,0.002,4344.9,4344.5,0.001]
[1760086993511,0.4537,4344.9,4344.5,0.001]
[1760086993709,0.1144,4344.8,4344.7,2.30165488]
[1760086994492,0.002,4344.9,4344.7,2.30165488]
[1760086994493,0.002,4344.9,4344.8,2.30160191]
[1760086994689,0.002,4344.9,4344.8,2.32461792]
[1760086994890,0.002,4344.9,4344.8,3.07252017]
[1760086996227,0.002,4344.9,4344.8,3.04950416]
[1760086996897,0.002,4344.9,4344.5,0.1154]
[1760086996898,0.4537,4344.9,4344.6,2.30170786]
[1760086997086,0.4537,4344.9,4344.5,0.1154]
[1760086997087,0.4517,4344.8,4344.5,0.1154]
[1760086997290,0.1144,4344.7,4344.5,0.001]
[1760086997488,0.5661,4344.7,4344.5,0.001]
[1760086997722,0.4517,4344.6,4344.5,0.001]
[1760086997928,0.4517,4344.6,4344.5,2.30276084]
[1760086998316,0.1144,4344.7,4344.5,2.30276084]
[1760086998317,0.1144,4344.7,4344.6,2.30170786]
[1760086998834,0.5661,4344.7,4344.6,2.30170786]
[1760086999029,0.5661,4344.7,4344.5,0.001]
[1760086999233,0.1144,4344.7,4344.5,0.001]
[1760086999408,0.4517,4344.6,4344.5,0.001]
[1760087000009,0.46321533,4344.6,4344.5,0.001]
[1760087001895,2.76492319,4344.6,4344.5,0.001]
[1760087002526,0.46321533,4344.6,4344.5,0.001]
[1760087005256,0.01151533,4344.6,4344.5,0.001]
[1760087005452,0.002,4344.9,4344.5,0.001]
[1760087005652,0.0012,4344.9,4344.8,2.30160191]
[1760087005856,0.0012,4344.9,4344.8,2.76203289]
[1760087006224,0.0012,4344.9,4344.8,3.19763289]
[1760087006416,0.0012,4344.9,4344.8,2.76203289]
[1760087008851,0.0012,4344.9,4344.8,2.7850489]
[1760087009059,0.0012,4344.9,4344.8,2.76203289]
[1760087009626,0.4585,4344.9,4344.8,2.76203289]
[1760087009845,0.4585,4344.9,4344.5,0.001]
[1760087010050,0.4573,4344.8,4344.5,0.001]
[1760087010250,0.4573,4344.8,4344.7,2.30165488]
[1760087010573,0.4573,4344.8,4344.5,0.001]
[1760087010574,0.4573,4344.8,4344.6,2.3016944]
[1760087011251,0.0012,4344.9,4344.5,0.001]
[1760087011252,0.01151533,4344.7,4344.5,0.001]
[1760087011436,0.4573,4344.6,4344.5,0.001]
[1760087012163,0.46881533,4344.6,4344.5,0.001]
[1760087014053,0.4573,4344.6,4344.5,0.001]
[1760087014731,2.77052319,4344.6,4344.5,0.001]
[1760087015228,0.46881533,4344.6,4344.5,0.001]
[1760087015838,0.4573,4344.6,4344.5,0.001]
[1760087016042,0.46881533,4344.6,4344.5,0.001]
[1760087016425,0.4573,4344.6,4344.5,0.001]
[1760087017065,0.4585,4344.9,4344.5,0.001]
[1760087017265,0.0012,4344.9,4344.5,0.001]
[1760087017431,0.4573,4344.8,4344.5,0.001]
[1760087017632,0.4573,4344.8,4344.6,2.30170216]
[1760087017875,0.4573,4344.8,4344.5,2.30275092]
[1760087018074,0.0012,4344.9,4344.5,2.30275092]
[1760087018075,0.1144,4344.6,4344.5,2.30275092]
[1760087018556,0.1144,4344.6,4344.5,2.76570936]
[1760087018929,0.1156,4344.9,4344.8,2.30160191]
[1760087019227,0.0012,4344.9,4344.8,2.30160191]
[1760087019841,0.0012,4344.9,4344.8,2.75240191]
[1760087020369,0.0012,4344.9,4344.8,2.30160191]
[1760087020577,0.0012,4344.9,4344.8,2.8557069]
[1760087021572,0.0012,4344.9,4344.8,3.3065069]
[1760087021754,0.0012,4344.9,4344.8,3.44392291]
[1760087022076,0.0012,4344.9,4344.8,5.3409069]
[1760087022262,0.0012,4344.9,4344.8,5.63906199]
[1760087022449,0.0012,4344.9,4344.8,5.3409069]
[1760087026686,0.0012,4344.9,4344.8,4.8901069]
[1760087027182,0.0012,4344.9,4344.8,5.3409069]
[1760087027743,0.0004,4344.9,4344.8,4.8901069]
[1760087028565,0.0004,4344.9,4344.8,2.9701069]
[1760087029891,0.0004,4344.9,4344.8,3.4209069]
[1760087030494,0.0004,4344.9,4344.8,3.44392291]
[1760087031006,0.0004,4344.9,4344.8,3.4209069]
[1760087031305,0.0004,4344.9,4344.8,2.99312291]
[1760087031507,0.0004,4344.9,4344.8,3.44392291]
[1760087031876,0.0004,4344.9,4344.8,5.662078]
[1760087032076,0.0004,4344.9,4344.8,5.63906199]
[1760087033687,0.0004,4344.9,4344.8,5.3409069]
[1760087033884,0.0004,4344.9,4344.8,4.8901069]
[1760087034710,0.0004,4344.9,4344.8,5.3409069]
[1760087041548,0.0004,4344.9,4344.8,4.8901069]
[1760087041692,0.0004,4344.9,4344.8,5.0065069]
[1760087044717,0.0004,4344.9,4344.8,5.0075069]
[1760087048559,0.0004,4344.9,4344.8,5.4458069]
[1760087049562,0.0004,4344.9,4344.8,5.0075069]
[1760087049931,0.0016,4345.4,4345.3,2.30133707]
[1760087050531,0.4291,4345.4,4345.3,2.30133707]
[1760087051880,0.0016,4345.4,4345.3,2.30133707]
[1760087052452,0.0016,4345.4,4345.3,3.22120262]
[1760087053470,0.0016,4345.4,4345.3,2.30133707]
[1760087053673,0.0016,4345.4,4345.3,2.32435044]
[1760087054472,0.0016,4345.4,4345.3,2.76265044]
[1760087054636,0.0016,4345.4,4345.3,3.17520553]
[1760087055370,0.0016,4345.4,4345.3,2.99145044]
[1760087055572,0.0016,4345.4,4345.3,3.47288257]
[1760087056639,0.0016,4345.4,4345.3,3.91118257]
[1760087058785,0.002,4345.8,4345.7,2.30112525]
[1760087058989,0.002,4345.8,4345.7,6.55012363]
[1760087059490,0.002,4345.8,4345.7,6.98842363]
[1760087059693,0.002,4345.8,4345.7,7.94720107]
[1760087060358,0.002,4345.8,4345.7,2.85302525]
[1760087060589,0.002,4345.8,4345.7,2.73862525]
[1760087060992,0.002,4345.8,4345.7,6.87322363]
[1760087061172,0.002,4345.8,4345.7,6.43572363]
[1760087062264,0.002,4345.8,4345.7,2.30112525]
[1760087062691,0.4295,4345.8,4345.6,2.30117675]
[1760087062857,0.4275,4345.7,4345.4,2.30128411]
[1760087063190,0.002,4345.8,4344.8,4.13559838]
[1760087063191,0.1144,4345.4,4344.8,4.13559838]
[1760087063383,0.1144,4345.4,4344.8,4.60699406]
[1760087063580,0.1144,4345.4,4345.3,2.30133707]
[1760087063892,0.1144,4345.4,4344.8,4.13559838]
[1760087064310,0.1144,4345.4,4345.1,2.30140203]
[1760087064462,0.4275,4345.3,4345.2,2.30134076]
[1760087065089,0.4275,4345.3,4344.8,4.13559838]
[1760087065090,0.6336,4345.2,4344.8,0.001]
[1760087065396,0.01151533,4345.1,4344.8,0.001]
[1760087065638,1.07261533,4345.1,4344.8,0.001]
[1760087065759,2.93514894,4344.9,4344.8,0.001]
[1760087066186,1.0611,4344.9,4344.8,0.001]
[1760087066367,0.4275,4344.9,4344.8,0.001]
[1760087066592,3.37416427,4344.9,4344.8,0.001]
[1760087066913,3.8703986,4344.9,4344.8,0.001]
[1760087067277,3.37416427,4344.9,4344.8,0.001]
[1760087067674,3.87005804,4344.9,4344.8,0.001]
[1760087068098,3.37416427,4344.9,4344.8,0.001]
[1760087069215,1.07261533,4344.9,4344.8,0.001]
[1760087069381,3.37416427,4344.9,4344.8,0.001]
[1760087071388,5.29416427,4344.9,4344.8,0.001]
[1760087071594,5.77780048,4344.9,4344.8,0.001]
[1760087071807,5.77700048,4344.9,4344.8,0.001]
[1760087072185,5.28184894,4344.9,4344.8,0.001]
[1760087072503,5.77682734,4344.9,4344.8,0.001]
[1760087075208,5.28184894,4344.9,4344.8,0.001]
[1760087078229,0.4267,4344.9,4344.8,0.001]
[1760087078877,1.0603,4344.9,4344.8,0.001]
[1760087079279,0.6336,4344.9,4344.8,0.001]
[1760087079481,1.1048,4344.9,4344.8,0.001]
[1760087081878,1.11631533,4344.9,4344.8,0.001]
[1760087085520,3.41786427,4344.9,4344.8,0.001]
[1760087086446,5.33786427,4344.9,4344.8,0.001]
[1760087086738,5.32634894,4344.9,4344.8,0.001]
[1760087089107,5.82133237,4344.9,4344.8,0.001]
[1760087094049,5.82053237,4344.9,4344.8,0.001]
[1760087097715,6.44133003,4344.9,4344.8,0.001]
[1760087099152,5.80853003,4344.9,4344.8,0.001]
[1760087100283,30.0,4344.8,4342.1,0.01]
[1760087100468,2.5536,4343.1,4342.1,0.01]
[1760087100675,0.6336,4342.7,4342.1,0.01]
[1760087100874,0.01151533,4342.6,4342.1,0.01]
[1760087101170,0.6336,4342.4,4342.1,0.01]
[1760087101373,0.4452,4342.4,4342.2,2.30298005]
[1760087101885,0.4452,4342.4,4342.3,2.30292702]
[1760087102283,0.4452,4342.7,4342.3,0.02302927]
[1760087102589,0.4452,4342.7,4342.6,2.30276792]
[1760087103155,0.4452,4342.7,4342.1,0.03303033]
[1760087103464,0.4452,4342.7,4342.1,0.01]
[1760087104388,1.0788,4343.0,4342.9,2.3025946]
[1760087104592,0.4452,4343.0,4342.9,2.3025946]
[1760087105052,0.4452,4343.4,4342.8,0.02302661]
[1760087105694,0.4452,4343.4,4343.2,2.30239703]
[1760087105987,0.4452,4343.3,4343.2,2.30239703]
[1760087108294,0.4452,4343.3,4343.1,2.30249618]
[1760087108487,0.2219,4343.5,4343.1,2.30249618]
[1760087108687,0.01151533,4343.4,4343.2,2.30244809]
[1760087108888,0.01151533,4343.4,4343.3,2.30239679]
[1760087109088,0.2219,4343.5,4343.4,2.30234378]
[1760087109291,0.2219,4343.5,4343.3,2.30238648]
[1760087109794,0.4452,4343.4,4343.3,2.30238648]
[1760087110265,0.2219,4343.5,4343.3,2.30238648]
[1760087110591,1.0788,4343.9,4343.2,2.3024498]
[1760087110592,0.1144,4343.3,4343.2,2.3024498]
[1760087110897,0.5596,4343.3,4343.2,2.3024498]
[1760087111469,0.1144,4343.3,4343.2,2.3024498]
[1760087113393,0.1144,4343.3,4343.2,2.76294684]
[1760087114181,0.1144,4343.3,4343.2,2.78597133]
[1760087114380,0.1144,4343.3,4343.2,2.76294684]
[1760087115082,0.5596,4343.3,4342.7,0.1144]
[1760087115304,0.5596,4343.3,4342.5,0.1144]
[1760087115504,0.6336,4343.2,4342.5,0.1144]
[1760087115817,0.6336,4343.2,4342.1,0.01]
[1760087115991,0.6328,4343.0,4342.5,2.30282025]
[1760087116193,0.6328,4343.0,4342.3,2.30288562]
[1760087116194,0.4452,4342.9,4342.3,2.30288562]
[1760087116378,4.22234378,4343.4,4342.3,2.30288562]
[1760087116579,0.4452,4342.8,4342.3,2.30288562]
[1760087116883,0.4452,4342.8,4342.1,0.01]
[1760087116884,0.4452,4342.8,4342.4,2.30287275]
[1760087117211,0.45671533,4342.7,4342.4,2.30287275]
[1760087117403,0.4452,4342.6,4342.4,2.30287275]
[1760087117603,0.4452,4342.5,4342.4,2.30287275]
[1760087118809,0.4452,4342.5,4342.1,0.01]
[1760087118810,0.01151533,4343.1,4342.6,2.30272776]
[1760087119014,1.93151533,4343.4,4342.6,2.30272776]
[1760087119193,2.42733549,4343.4,4342.6,2.30272776]
[1760087119389,2.42733549,4343.4,4342.4,2.30287253]
[1760087119390,0.4452,4343.3,4342.7,2.30271234]
[1760087119726,0.49582016,4343.4,4342.6,2.30276104]
[1760087119727,0.6336,4343.1,4342.6,2.30276104]
[1760087119932,0.6336,4342.9,4342.6,2.30276104]
[1760087120281,0.4452,4342.8,4342.6,2.30276104]
[1760087120543,0.45671533,4342.7,4342.1,2.31303054]
[1760087120684,0.01151533,4342.7,4342.4,2.30283184]
[1760087121014,0.4452,4342.6,4342.4,2.30283184]
[1760087121252,0.64511533,4343.0,4342.4,2.30283184]
[1760087121535,0.4452,4342.5,4342.4,2.30283184]
[1760087125667,0.49585978,4343.3,4343.0,2.30254945]
[1760087125816,0.1144,4342.9,4342.8,2.30266187]
[1760087126219,0.5596,4342.9,4342.8,2.30266187]
[1760087126450,0.1144,4342.9,4342.8,2.30266187]
[1760087126617,0.5596,4342.9,4342.8,2.30266187]
[1760087127020,0.1144,4342.9,4342.8,2.30266187]
[1760087129023,0.1144,4342.9,4342.8,2.76550406]
[1760087129830,0.4677,4343.7,4343.5,2.30226196]
[1760087130075,0.1144,4343.1,4343.0,2.30255583]
[1760087130665,0.1144,4343.1,4343.0,2.32558138]
[1760087131133,0.1144,4343.1,4343.0,3.29517943]
[1760087131780,0.1144,4343.1,4343.0,2.30255583]
[1760087133772,0.1144,4343.1,4343.0,7.19597596]
[1760087133936,0.1164,4343.5,4343.4,2.30234378]
[1760087135164,0.002,4343.5,4343.4,7.60043836]
[1760087135541,0.002,4343.5,4343.4,7.17273836]
[1760087135741,0.002,4343.5,4343.4,10.47939371]
[1760087135941,0.002,4343.5,4343.4,10.59379371]
[1760087136836,0.002,4343.5,4343.4,5.72339913]
[1760087137036,0.002,4343.5,4343.4,5.29569913]
[1760087137283,0.012,4344.9,4343.5,4.22229077]
[1760087137518,0.012,4344.9,4344.4,2.30181382]
[1760087137717,0.012,4344.9,4344.8,2.30160191]
[1760087138087,0.0112,4344.9,4344.8,2.30160191]
[1760087140229,0.4789,4344.9,4344.0,2.30197302]
[1760087140428,0.4789,4344.9,4343.9,4.87039458]
[1760087140429,0.4789,4344.9,4344.7,2.30161275]
[1760087140607,0.4677,4344.8,4344.7,2.30165488]
[1760087140790,0.0112,4344.9,4344.1,2.30197279]
[1760087141132,0.4789,4344.9,4344.1,2.30197279]
[1760087141338,0.4789,4344.9,4343.9,4.87039458]
[1760087141524,0.0112,4344.9,4344.8,2.30160191]
[1760087144424,0.0112,4344.9,4344.8,7.17199649]
[1760087144651,0.0112,4344.9,4344.8,7.59969649]
[1760087147142,0.002,4345.4,4345.3,2.30133707]
[1760087147312,0.002,4345.4,4345.3,2.32435044]
[1760087149543,0.002,4345.4,4345.3,6.45845001]
[1760087149748,0.002,4345.4,4345.3,2.30133707]
[1760087151118,0.002,4345.4,4345.3,2.32435044]
[1760087151323,0.002,4345.4,4345.3,3.20033631]
[1760087152758,0.002,4345.4,4345.3,3.62883631]
[1760087154166,0.002,4345.4,4345.3,5.66323631]
[1760087154363,0.002,4345.4,4345.3,5.64022294]
[1760087155335,0.002,4345.4,4345.3,5.21172294]
[1760087155835,0.002,4345.4,4345.3,3.29172294]
[1760087157853,0.002,4345.4,4345.3,3.31473631]
[1760087158361,0.002,4345.4,4345.3,3.29172294]
[1760087159987,0.002,4345.4,4345.3,3.31473631]
[1760087160192,0.0012,4345.4,4345.3,2.41573707]
[1760087160884,0.0012,4345.4,4345.3,2.90035044]
[1760087161256,0.0012,4345.4,4345.3,4.82035044]
[1760087161456,0.0012,4345.4,4345.3,4.79733707]
[1760087162685,0.0012,4345.4,4345.3,4.33573707]
[1760087162890,0.0012,4345.4,4345.3,2.41573707]
[1760087163874,0.0012,4345.4,4345.3,2.30133707]
[1760087164312,0.0012,4345.4,4345.3,6.43543664]
[1760087165304,0.0012,4345.4,4345.3,2.30133707]
[1760087166103,0.4396,4345.4,4345.3,2.30133707]
[1760087169511,0.0012,4345.4,4345.3,2.30133707]
[1760087169876,0.0012,4345.4,4345.1,2.3014087]
[1760087169877,0.4396,4345.4,4344.8,0.001]
[1760087170210,0.554,4345.4,4344.8,0.001]
[1760087170370,0.1144,4345.0,4344.9,2.30154894]
[1760087170717,0.1144,4345.0,4344.9,6.43564851]
[1760087170880,0.0012,4345.4,4345.3,2.30133707]
[1760087171071,0.1156,4345.4,4345.3,2.30133707]
[1760087172577,0.554,4345.4,4345.3,2.30133707]
[1760087176306,0.0012,4345.4,4345.3,2.76391296]
[1760087176473,0.0012,4345.4,4345.3,3.22551296]
[1760087176836,0.0012,4345.4,4345.3,5.40853285]
[1760087176973,0.0012,4345.4,4345.3,5.52293285]
[1760087177169,1e-08,4345.9,4345.7,2.30112525]
[1760087177406,1e-08,4345.9,4345.8,10.82239468]
[1760087177592,1e-08,4345.9,4345.8,11.26098396]
[1760087177798,0.002,4346.3,4346.2,2.30086052]
[1760087177993,0.002,4346.3,4346.2,8.37796869]
[1760087178304,0.002,4346.3,4346.2,8.81656009]
[1760087178503,0.002,4346.3,4346.2,9.93849944]
[1760087179506,0.002,4346.3,4346.2,18.52593457]
[1760087181181,0.002,4346.3,4346.2,5.80439987]
[1760087181796,0.002,4346.3,4346.2,5.34279987]
[1760087181978,0.002,4346.3,4346.2,2.30086052]
[1760087182505,0.0012,4346.3,4346.2,2.30086052]
[1760087185112,0.4396,4346.3,4345.8,0.23011253]
[1760087185316,0.0012,4346.3,4346.2,2.30086052]
[1760087185501,0.0012,4346.3,4346.2,2.32386912]
[1760087187416,0.4688,4346.3,4345.8,0.1144]
[1760087187718,0.4676,4346.2,4346.1,2.30091346]
[1760087187887,0.582,4346.2,4346.1,2.30091346]
[1760087189090,0.582,4346.2,4346.1,2.30191346]
[1760087190188,0.582,4346.2,4346.1,0.001]
[1760087190926,1.2156,4346.2,4346.1,0.001]
[1760087191293,3.51646052,4346.2,4346.1,0.001]
[1760087192196,5.43646052,4346.2,4346.1,0.001]
[1760087192417,11.70880375,4346.2,4346.1,0.001]
[1760087192601,11.11780375,4346.2,4346.1,0.001]
[1760087192807,9.55044175,4346.2,4346.1,0.001]
[1760087193329,5.93167875,4346.2,4346.1,0.001]
[1760087193515,9.59644175,4346.2,4346.1,0.001]
[1760087193721,5.93167875,4346.2,4346.1,0.001]
[1760087195933,11.26637275,4346.2,4346.1,0.001]
[1760087196291,5.93167875,4346.2,4346.1,0.001]
[1760087197242,22.37909175,4346.2,4346.1,0.001]
[1760087197528,6.43516861,4346.2,4346.1,0.001]
[1760087197731,5.81727875,4346.2,4346.1,0.001]
[1760087198402,9.89335775,4346.2,4346.1,0.001]
[1760087198734,10.44885875,4346.2,4346.1,0.001]
[1760087199620,17.57029275,4346.2,4346.1,0.001]
[1760087199846,25.22818261,4346.2,4346.1,0.001]
[1760087199996,30.10688329,4345.8,4345.7,0.001]
[1760087200343,33.1403242,4345.8,4345.7,0.001]
[1760087200510,33.6079242,4345.8,4345.7,0.001]
[1760087200717,10.04451827,4345.8,4345.7,0.001]
[1760087201518,6.52770727,4345.8,4345.7,0.001]
[1760087201854,30.92370827,4345.8,4345.7,0.001]
[1760087202024,30.29010827,4345.8,4345.7,0.001]
[1760087202210,30.30575723,4345.8,4345.7,0.001]
[1760087202411,28.57640823,4345.8,4345.7,0.001]
[1760087203018,26.81628787,4345.8,4345.7,0.001]
[1760087203627,26.94322187,4345.8,4345.7,0.001]
[1760087204428,13.19746723,4345.8,4345.7,0.001]
[1760087204628,5.90895623,4345.8,4345.7,0.001]
[1760087204827,10.21659123,4345.8,4345.7,0.001]
[1760087205619,5.90895623,4345.8,4345.7,0.001]
[1760087205963,19.63692523,4345.8,4345.7,0.001]
[1760087206457,18.25192523,4345.8,4345.7,0.001]